Cogmind - Beta 10.2 @@@ ROGUE MODE // 2021.07.05 @ 23:01:19 Player: cavemonk Result: Destroyed by D-53 Grenadier with Mini Grenade Launcher Performance ------------- Evolutions (0) 0 Regions Visited (4) 800 Robots Destroyed (27) 135 Value Destroyed (445) 445 Prototype IDs (23) 460 Alien Tech Used (0) 0 Bonus (300) 300 TOTAL SCORE: 2140 Bonus ------- Aligned with FarCom 300 Cogmind --------- Core Integrity 0/250 Matter 250/300 Energy 100/100 System Corruption 1% Temperature Cool (0) Movement Rolling (110) Ox3 Location -9/Mines Parts ------- > --- POWER (1) -------- (None) > --- PROPULSION (2) --- Wheel > --- UTILITY (2) ------ Large Storage Unit Large Storage Unit > --- WEAPON (2) ------- (None) > --- INVENTORY (16) --- Ion Engine Light Treads Heat Sink Large Storage Unit High-capacity Storage Unit High-capacity Storage Unit High-capacity Storage Unit Medium Battery (200) High-capacity Matter Pod (200) High-capacity Matter Pod (25) Improved Terrain Scanner Mining Laser Plasma Cutter Flail Peak State ------------ > --- POWER ------------ Ion Engine > --- PROPULSION ------- Light Treads Light Treads > --- UTILITY ---------- High-capacity Storage Unit Core Shielding > --- WEAPON ----------- Assault Rifle Plasma Cutter > --- INVENTORY -------- Ion Engine Heat Sink Large Storage Unit Large Storage Unit Large Storage Unit High-capacity Storage Unit High-capacity Storage Unit Medium Battery High-capacity Matter Pod High-capacity Matter Pod Mini Grenade Launcher Mining Laser [Rating: 9] Favorites ----------- Power Ion Engine Engine Ion Engine Propulsion Light Treads Treads Light Treads Leg Aluminum Leg Wheel Wheel Utility Core Shielding Storage Large Storage Unit Protection Core Shielding Weapon Assault Rifle Energy Gun Medium Laser Ballistic Gun Assault Rifle Launcher Mini Grenade Launcher Special Weapon Plasma Cutter Build | -11 -10 -10 -10 -9 ------- Run | Scr Mat Min Exi Min Slots Evolved . | . . . . . Power . | . . . . . Propulsion . | . . . . . Utility . | . . . . . Weapon . | . . . . . Parts Attached 47 | 3 27 8 1 8 Power 3 | . 1 2 . . Engine 3 | . 1 2 . . Core . | . . . . . Reactor . | . . . . . Propulsion 21 | 2 13 4 . 2 Treads 11 | 1 7 2 . 1 Leg . | . . . . . Wheel 10 | 1 6 2 . 1 Hover . | . . . . . Flight . | . . . . . Utility 6 | 1 2 1 . 2 Device . | . . . . . Storage 5 | 1 1 1 . 2 Processor . | . . . . . Hackware . | . . . . . Protection 1 | . 1 . . . Artifact . | . . . . . Weapon 17 | . 11 1 1 4 Energy Gun 2 | . . 1 1 . Energy Cannon . | . . . . . Ballistic Gun 8 | . 7 . . 1 Ballistic Cannon . | . . . . . Launcher 1 | . . . . 1 Special Weapon 6 | . 4 . . 2 Impact Weapon . | . . . . . Slashing Weapon . | . . . . . Piercing Weapon . | . . . . . Special Melee Weapon . | . . . . . Unidentified Prototypes . | . . . . . Parts Lost 9 | . . 2 3 4 Power 2 | . . 1 . 1 Propulsion 2 | . . . 1 1 Utility . | . . . . . Weapon 5 | . . 1 2 2 Highest Loss Streak 4 | . . 2 3 4 Average Slot Usage (%) 98 | . 99 99 99 95 Engine 13 | . 14 13 14 13 Treads 15 | . 15 14 14 17 Wheel 12 | . 12 13 13 9 Storage 15 | . 14 14 14 23 Protection 12 | . 13 14 14 4 Energy Gun 6 | . . 13 14 . Ballistic Gun 18 | . 26 14 12 12 Special Weapon 2 | . . . . 11 Naked Turns . | . . . . . Heaviest Build 42 | 15 24 42 42 41 Greatest Support 40 | 20 40 10 10 40 Greatest Overweight (x) 12 | 1 2 4 12 3 Average Overweight (x) 2 | . 1 3 4 . Largest Inventory Capacity 18 | 8 10 12 12 18 Average Capacity 11 | 6 9 11 12 14 Most Carried 14 | 6 10 12 12 14 Average Carried 10 | 4 9 10 11 12 Final Capacity 16 | 8 10 12 12 16 Final Carried 14 | 6 10 11 12 14 Class Distribution -------------------- 100% | Mutant Dominant Class ---------------- Mutant | -10/Materials Mutant | -10/Mines Mutant | -10/Exiles Mutant | -9/Mines Resources | -11 -10 -10 -10 -9 ----------- Run | Scr Mat Min Exi Min Matter Collected 1214 | 260 692 163 . 99 Remotely . | . . . . . Salvage Created 740 | 182 294 184 . 80 Parts 52 | 14 16 17 . 5 Haulers Intercepted . | . . . . . Recyclers Shooed . | . . . . . Parts Field Recycled . | . . . . . Retrieved Matter . | . . . . . Parts Self-Destructed . | . . . . . Prevented . | . . . . . Kills | -11 -10 -10 -10 -9 ------- Run | Scr Mat Min Exi Min Combat Hostiles Destroyed 35 | . 11 8 . 16 Guns 19 | . 11 8 . . AOE 16 | . . . . 16 Classes Destroyed 6 | 2 3 . . 1 Tunneler 6 | 5 . . . 1 Recycler 1 | 1 . . . . Watcher 1 | . 1 . . . Swarmer 12 | . 6 6 . . Grunt 7 | . 5 2 . . Assembled 16 | . . . . 16 Best Kill Streak 16 | 4 6 3 . 16 Combat Bots Only 16 | . 5 3 . 16 Max Kills in Single Turn 6 | 1 1 1 . 6 Gunslinging . | . . . . . Exploded 6 | . . . . 6 Melee . | . . . . . Uniques/NPCs Destroyed . | . . . . . Combat | -11 -10 -10 -10 -9 -------- Run | Scr Mat Min Exi Min Damage Taken 1132 | . 217 326 146 443 Core 256 | . 54 41 16 145 Absorbed by Shields . | . . . . . Core Remaining (%) 100 | 100 . . . . Volleys Fired 77 | 10 32 23 4 8 Largest 2 | 2 2 2 1 1 Hottest 100 | 70 100 70 40 30 Shots Fired 135 | 20 57 46 4 8 Gun 120 | 20 50 46 4 . Cannon . | . . . . . Launcher 6 | . . . . 6 Special 9 | . 7 . . 2 Kinetic 94 | 10 50 31 3 . Thermal 34 | 10 7 15 . 2 Explosive 6 | . . . . 6 Electromagnetic 1 | . . . 1 . Robot Hit Streak 11 | 7 11 9 . 5 Robot Miss Streak 5 | 2 5 3 . 1 Penetration Max . | . . . . . Secondary Targets 2 | . . 2 . . Max Gunslinging Chain 1 | . . 1 . . Shots Hit Robots 76 | 13 31 27 . 5 Core Hits 57 | 7 14 11 . 25 Critical Hits . | . . . . . Critical Kills . | . . . . . Critical Parts Destroyed . | . . . . . Melee Attacks . | . . . . . Impact . | . . . . . Slashing . | . . . . . Piercing . | . . . . . Sneak Attacks . | . . . . . Combat Hostiles . | . . . . . Follow-up Attacks . | . . . . . Damage Inflicted 1866 | 161 404 357 . 944 Guns 922 | 161 404 357 . . Cannons . | . . . . . Explosions 932 | . . . . 932 Melee . | . . . . . Ramming . | . . . . . Kinetic 640 | 59 404 177 . . Thermal 294 | 102 . 180 . 12 Explosive 932 | . . . . 932 Electromagnetic . | . . . . . Impact . | . . . . . Slashing . | . . . . . Piercing . | . . . . . Highest Corruption 1 | . . . 1 1 Average Corruption 1 | . . . 1 1 Corruption Purged . | . . . . . Effects 1 | . . . . 1 Data Loss (minor) 1 | . . . . 1 Overload Shots . | . . . . . Overflow Damage 14 | . . . . 14 Projectiles . | . . . . . Explosions 14 | . . . . 14 Melee . | . . . . . Knockbacks . | . . . . . Impact . | . . . . . Kinetic . | . . . . . Secondary . | . . . . . Self-Inflicted Damage 19 | . . . . 19 Shots 1 | . . . . 1 Rammed . | . . . . . Targets Rammed . | . . . . . Kicked . | . . . . . Crushed . | . . . . . Highest Temperature 144 | 36 40 144 . . Average Temperature 33 | 14 15 55 . . Received Heat Transfer 138 | . 84 54 . . Siege Activations . | . . . . . Robots Corrupted . | . . . . . Combat Hostiles . | . . . . . Parts Fried . | . . . . . Impact Corruptions . | . . . . . Robots Melted . | . . . . . Combat Hostiles . | . . . . . Parts Melted 1 | 1 . . . . Heat Transferred 851 | 296 . 518 . 37 Parts Sabotaged . | . . . . . Parts Stolen . | . . . . . Parts Stripped . | . . . . . Power Chain Reactions . | . . . . . Missiles Intercepted . | . . . . . Alert | -11 -10 -10 -10 -9 ------- Run | Scr Mat Min Exi Min Peak Influence 288 | 30 257 288 . 5 Initial 88 | . 19 88 . . Average 102 | 15 122 140 . 3 Maximum Alert Level 1 | . 1 1 . . Low Security (%) 78 | 100 70 72 . 100 Level 1 21 | . 29 27 . . Level 2 . | . . . . . Level 3 . | . . . . . Level 4 . | . . . . . Level 5 . | . . . . . High Security . | . . . . . Max Security . | . . . . . Squads Dispatched 1 | . 1 . . . Investigation 1 | . 1 . . . Extermination . | . . . . . Reinforcement . | . . . . . Assault . | . . . . . Garrison . | . . . . . Intercept . | . . . . . Construction Impeded . | . . . . . Haulers Reinforced . | . . . . . Stealth | -11 -10 -10 -10 -9 --------- Run | Scr Mat Min Exi Min Distress Signals 6 | . 6 . . . Communications Jammed . | . . . . . Distress Signals . | . . . . . Times Spotted 54 | . 23 8 2 21 Peak Tracking Total 17 | . 7 3 9 17 Tactical Retreats 3 | . 3 . . . Traps | -11 -10 -10 -10 -9 ------- Run | Scr Mat Min Exi Min Traps Triggered 4 | . 4 . . . Indirectly . | . . . . . Trap Hack Attempts . | . . . . . Triggered . | . . . . . Disarmed . | . . . . . Reprogrammed . | . . . . . Reused . | . . . . . Traps Extracted . | . . . . . Installed . | . . . . . Triggered . | . . . . . Machines | -11 -10 -10 -10 -9 ---------- Run | Scr Mat Min Exi Min Machines Disabled 2 | . . 1 1 . Max in Single Turn 1 | . . 1 1 . Machines Sabotaged . | . . . . . Garrisons Compromised . | . . . . . Overloaded Fab Kills . | . . . . . Fab Network Shutdowns . | . . . . . Hacking | -11 -10 -10 -10 -9 --------- Run | Scr Mat Min Exi Min Machines Accessed 11 | . 10 . 1 . Terminals 8 | . 8 . . . Fabricators . | . . . . . Repair Stations . | . . . . . Recycling Units 2 | . 2 . . . Scanalyzers . | . . . . . Garrison Access . | . . . . . Total Hacks 30 | . 29 . 1 . Successful 17 | . 16 . 1 . Failed 12 | . 12 . . . Catastrophic 3 | . 3 . . . Database Lockouts 1 | . 1 . . . Manual 18 | . 17 . 1 . Terminals 26 | . 26 . . . Fabricators . | . . . . . Repair Stations . | . . . . . Recycling Units 3 | . 3 . . . Scanalyzers . | . . . . . Garrison Access . | . . . . . Terminal Hacks 10 | . 9 . 1 . Record 1 | . 1 . . . Robot Analysis 2 | . 2 . . . Level Access Points 1 | . 1 . . . Branch Access Points 1 | . 1 . . . Terminal Index 1 | . 1 . . . Locate Traps 1 | . 1 . . . Hauler Manifests 1 | . 1 . . . Registered Components 1 | . 1 . . . EX-Prototype ID Bank 1 | . . . 1 . Fabricator Hacks . | . . . . . Repair Station Hacks . | . . . . . Recycling Unit Hacks . | . . . . . Scanalyzer . | . . . . . Garrison Access Hacks . | . . . . . Unauthorized Hacks 7 | . 7 . . . Terminals 4 | . 4 . . . Track 1 | . 1 . . . Disrupt 2 | . 2 . . . Operators 1 | . 1 . . . Fabricators . | . . . . . Repair Stations . | . . . . . Recycling Units 3 | . 3 . . . Reject 1 | . 1 . . . Recyclers 1 | . 1 . . . Mask 1 | . 1 . . . Scanalyzers . | . . . . . Garrison Access . | . . . . . Data Cores Recovered . | . . . . . Used . | . . . . . Hacking Detections 8 | . 8 . . . Full Trace Events . | . . . . . Feedback Events . | . . . . . Feedback Blocked . | . . . . . Robot Schematics Acquired . | . . . . . Robots Built . | . . . . . Matter . | . . . . . Time . | . . . . . Total Robot Build Rating . | . . . . . Part Schematics Acquired . | . . . . . Parts Built . | . . . . . Matter . | . . . . . Time . | . . . . . Total Part Build Rating . | . . . . . Parts Repaired . | . . . . . Time . | . . . . . Parts Recycled . | . . . . . Recycled Matter . | . . . . . Retrieved Matter . | . . . . . Retrieved Components . | . . . . . Parts Scanalyzed . | . . . . . Part Schematics Acquired . | . . . . . Parts Damaged . | . . . . . Bothacking | -11 -10 -10 -10 -9 ------------ Run | Scr Mat Min Exi Min Used RIF Installer . | . . . . . Robots Hacked . | . . . . . Non-combat . | . . . . . Combat . | . . . . . Robot Hacks Applied . | . . . . . Relay Couplers Released . | . . . . . Robots Rewired . | . . . . . Allies Hacked . | . . . . . Hacks Repelled . | . . . . . Allies | -11 -10 -10 -10 -9 -------- Run | Scr Mat Min Exi Min Total Allies . | . . . . . Largest Group . | . . . . . Highest-Rated Group . | . . . . . Highest-Rated Ally . | . . . . . Total Orders . | . . . . . Ally Attacks . | . . . . . Total Damage . | . . . . . Kills . | . . . . . Allies Corrupted . | . . . . . Allies Melted . | . . . . . Intel | -11 -10 -10 -10 -9 ------- Run | Scr Mat Min Exi Min Robot Analysis Total 2 | . 2 . . . Derelict Logs Recovered 2 | . . 1 . 1 Drone Launches . | . . . . . Drone Recoveries . | . . . . . Exploration | -11 -10 -10 -10 -9 ------------- Run | Scr Mat Min Exi Min Turns Passed 2893 | 96 1023 873 447 454 Spaces Moved 2093 | 48 813 634 363 235 Core 1 | . . . 1 . Treads 290 | 12 48 . . 230 Legs 15 | 15 . . . . Wheels 1787 | 21 765 634 362 5 Hover . | . . . . . Flight . | . . . . . Fastest Speed 90 | 90 90 100 110 110 Average Speed 118 | 116 103 114 121 175 Slowest Speed 650 | 160 180 120 650 180 Overloaded Moves . | . . . . . Propulsion Burnouts . | . . . . . Robots Hopped . | . . . . . Cave-ins Triggered . | . . . . . Exploration Rate (%) 65 | 4 98 95 78 53 Regions Visited 4 Branch Regions 3 Pre-discovered Areas . | . . . . . Known Exits Taken 2 | . 1 1 . . Unknown Exits Taken 2 | 1 . . 1 . Scrap Searched 4 | . . 2 . 2 Spaces Dug 7 | . 7 . . . Terrain Destroyed 42 | . 7 . . 35 Melee . | . . . . . Projectile 7 | . 7 . . . AOE 35 | . . . . 35 Terrain Rammed . | . . . . . Walls Destroyed . | . . . . . Machines Disabled . | . . . . . Actions | -11 -10 -10 -10 -9 --------- Run | Scr Mat Min Exi Min Total 2346 | 69 911 730 372 264 Wait 95 | . 28 62 . 5 Move 2089 | 47 812 633 362 235 Hop . | . . . . . Pick Up 21 | 4 7 2 3 5 Fast Attach 11 | 2 6 1 . 2 Attach 6 | 1 1 1 . 3 Detach 1 | . . . . 1 Swap 30 | . 20 6 1 3 Drop 16 | 5 5 2 2 2 Fire 77 | 10 32 23 4 8 Melee . | . . . . . Ram . | . . . . . Kick . | . . . . . Crush . | . . . . . Escape Stasis . | . . . . . Rewire . | . . . . . Trap . | . . . . . Miscellaneous . | . . . . . Route ------- -11/Scrapyard -10/Materials (discovered 4 exits: *Mat x3 / *Min) -10/Mines (discovered 3 exits: *Mat x2 / *Exi) -10/Exiles (discovered 2 exits: [*Min x2]) -9/Mines History --------- Turn | Location | Event 1 | -11/Scrapyard | Discovered new exit (range 3) 97 | -11/Scrapyard | Entered Materials 107 | -10/Materials | Identified exit to Mines 350 | -10/Materials | Discovered new exit (range 16) 368 | -10/Materials | Build established: Mutant 479 | -10/Materials | Central database locked down 487 | -10/Materials | Discovered new exit (range 8) 496 | -10/Materials | Identified exit to Materials 1120 | -10/Materials | Entered Mines 1256 | -10/Mines | Identified exit to Exiles 1446 | -10/Mines | Discovered exit to Materials (range 5) 1798 | -10/Mines | Discovered exit to Materials (range 11) 1919 | -10/Mines | Deemed a non-threat by the Exiles lab entrance 1993 | -10/Mines | Entered Exiles 2011 | -10/Exiles | Discovered new exit (range 15) 2026 | -10/Exiles | Met 8R-AWN 2044 | -10/Exiles | Met EX-HEX 2076 | -10/Exiles | Met EX-BIN 2091 | -10/Exiles | Aligned with FarCom system 2092 | -10/Exiles | Given EX-Vault access code 2121 | -10/Exiles | Opened EX-Vault 2146 | -10/Exiles | Warned to stay clear of 0b10 Research branches 2219 | -10/Exiles | Met EX-DEC 2243 | -10/Exiles | Visited The Gauntlet 2403 | -10/Exiles | Attacked by the Exiles 2431 | -10/Exiles | Discovered new exit (range 10) 2440 | -10/Exiles | Entered Mines 2470 | -9/Mines | Lost 3 parts (1n2w) 2649 | -9/Mines | Learned Materials trap positions 2874 | -9/Mines | Assembled infested the area 2886 | -9/Mines | Core integrity fell below 50% 2891 | -9/Mines | Core integrity fell below 20% 2894 | -9/Mines | Destroyed by D-53 Grenadier with Mini Grenade Launcher Last Messages --------------- 02880_ as-76757 destroyed. 02880_ as-23323 destroyed. 02880_ as-77204 destroyed. 02880_ as-81315 destroyed. 02881_ T-07 Excavator system terminally corrupted. 02882_ as-83322 destroyed. 02883_ Lgt. Treads destroyed. 02883_ C-30 ARC bursts open, deploying its payload. 02883_ D-53 Grenadier unfolds itself. 02884_ as-96621 destroyed. 02884_ as-41137 destroyed. 02884_ as-65737 destroyed. 02886_ as-44256 destroyed. 02886_ Assault Rifle destroyed. 02888_ as-95930 destroyed. 02888_ as-40781 destroyed. 02888_ Ion Engine destroyed. 02888_ Mni. Grenade Launcher destroyed. 02892_ The unstable cave ceiling collapses. 02893_ K-01 Serf collects debris. Map ----- +----------------------------------------------------+ | | | | | | | | | | | | | | | ???????????????????????????????????????????? | | ???????????????????????????????????????????? | | ???????????????????????????????????????????? | | ???????????????????????????????????????????? | | ?????????????????????###???????????????????? | | ???????????????????## #?##???????????????? | | ??????????????????? # ???????????????? | | ???????????????????? ???????????????? | | ???????????????????? ???????????????? | | ???????????????????? ???????????????? | | ????????????????????? a ##??????????????? | | ?????????????????????#a% ##?????????????? | | ?????????????????????# #?????????????? | | ?????????????????????# a ###???????????? | | ?????????????????????# % #???????????? | | ?????????????????????# ##??????????? | | ?????????????????????## #??????????? | | ?????????????????????# ##??????????? | | ??????????????????????# @ ##?????????? | | ??????????????????????# ##????????? | | ??????????????????????## #????????? | | ???????????????????????# #????????? | | ???????????????????????# #????????? | | ???????????????????????# #????????? | | ??????????????????????### #????????? | | ?????????????????????## ##????????? | | ?????????????????????# ##?????????? | | ?????????????????????# dd ###??????????? | | ?????????????????????# #????????????? | | ?????????????????????## #????????????? | | ??????????????????????# #????????????? | | ??????????????????????#" ##???????????? | | ??????????????????????#%k #########???? | | ??????????????? " t #???? | | ??????????????? # / #???? | | ??????????????? ######### ##### #???? | | ?????????????????????????## #???# #???? | | ??????????????????????????## #??## ##??? | | ???????????????????????????### #?## ##?? | | ?????????????????????????????# ### #?? | | ????????????????????????????## ## #?? | | ???????????????????????????## ##?? | | ??????????????????????????## #####??? | +----------------------------------------------------+ Best States ------------- Heat Dissipation 25 Energy Generation 10 Energy Capacity 250 Matter Stores 300 Matter Capacity 300 Sight Range 16 Terrain Scan Density 10 Core Shielding 20 Evasion (%) 42 Recoil Reduction 2 Item Schematics ----------------- None Robot Schematics ------------------ None Fabricated ------------ Nothing Alien Tech Used ----------------- None Achievements -------------- None Challenges ------------ None Game ------ Seed RocketNeutronRecalibrator Manual? 0 Play Time 00:24:15 Cumulative 243.1 hours Start 2021.07.05 @ 22:35:28 End 2021.07.05 @ 23:01:19 Sessions 1 Manual Loads 0 Difficulty Rogue Special Mode None Game No. 176 Rogue 176 Adventurer 0 Explorer 0 Win Type - Total 5 Types 5/0/0/0/0/0/0/0/0 Lore% 49 Gallery% 72 Achievement% 56 Wizard Run 0 Options --------- ASCII 0 Keyboard 0 Movement Numpad Keybinds 0 Fullscreen 2 Font 18/TerminusBold Map View 76x50 Tactical HUD 1 Map Filters NONE Filters NONE Steam 1 RUN: 82f64f21-06dd-418e-993a-f32a7fd0f88e